fUSD/lending_fUSD_20240212
["ID","MTS","AMOUNT","RATE_DAILY","PERIOD"]
[313883830,1707769875204,-500.0,0.00033424,2]
[313883831,1707769875214,-500.0,0.00033424,2]
[313883832,1707769875225,-500.0,0.00033424,2]
[313883833,1707769875235,-500.0,0.00033424,2]
[313883834,1707769875245,-500.0,0.00033424,2]
[313883835,1707769875255,-500.0,0.00033424,2]
[313883836,1707769875265,-1331.32,0.00033424,2]
[313883837,1707769875275,-917.05,0.00033424,2]
[313883838,1707769875284,-500.0,0.00033424,2]
[313883839,1707769875293,-500.0,0.00033424,2]
[313883840,1707769875304,-500.0,0.00033424,2]
[313883841,1707769875313,-3280.01,0.00033424,2]
[313883842,1707769875323,-545.72,0.00033424,2]
[313883843,1707769875332,-500.0,0.00033424,2]
[313883844,1707769875341,-9977.66,0.00033424,2]
[313883845,1707769875350,-500.0,0.00033424,2]
[313883846,1707769875360,-500.0,0.00033424,2]
[313883847,1707769875369,-500.0,0.00033424,2]
[313883848,1707769875378,-4143.77,0.00033424,2]
[313883849,1707769875388,-5964.37,0.00033424,2]
[313883850,1707769875404,-500.0,0.00033424,2]
[313883851,1707769875414,-500.0,0.00033424,2]
[313883852,1707769875424,-695.09,0.00033424,2]
[313883853,1707769875434,-500.0,0.00033424,2]
[313883854,1707769875443,-506.49867837,0.00033424,2]
[313883855,1707769875452,-500.0,0.00033424,2]
[313883856,1707769875462,-561.48,0.00033424,2]
[313883857,1707769875472,-500.0,0.00033424,2]
[313883858,1707769875481,-500.0,0.00033424,2]
[313883859,1707769875490,-843.63,0.00033424,2]
[313883860,1707769875500,-500.0,0.00033424,2]
[313883861,1707769875509,-500.0,0.00033424,2]
[313883862,1707769875518,-984.81,0.00033424,2]
[313883863,1707769875527,-500.0,0.00033424,2]
[313883864,1707769875537,-500.0,0.00033424,2]
[313883865,1707769875546,-500.0,0.00033424,2]
[313883866,1707769875556,-500.0,0.00033424,2]
[313883867,1707769875567,-1158.95,0.00033424,2]
[313883868,1707769875577,-500.0,0.00033424,2]
[313883869,1707769875586,-500.0,0.00033424,2]
[313883870,1707769875596,-500.0,0.00033424,2]
[313883871,1707769875605,-500.0,0.00033424,2]
[313883872,1707769875615,-2406.89,0.00033424,2]
[313883873,1707769875625,-500.0,0.00033424,2]
[313883874,1707769875634,-500.0,0.00033424,2]
[313883875,1707769875644,-500.0,0.00033424,2]
[313883876,1707769875656,-578.56,0.00033424,2]
[313883877,1707769875665,-500.0,0.00033424,2]
[313883878,1707769875675,-500.0,0.00033424,2]
[313883879,1707769875685,-500.0,0.00033424,2]
[313883880,1707769875694,-500.0,0.00033424,2]
[313883881,1707769875704,-500.0,0.00033424,2]
[313883882,1707769875714,-500.0,0.00033424,2]
[313883883,1707769875723,-580.98431722,0.00033424,2]
[313883884,1707769875733,-500.0,0.00033424,2]
[313883885,1707769875742,-500.0,0.00033424,2]
[313883886,1707769875752,-500.0,0.00033424,2]
[313883887,1707769875761,-500.0,0.00033424,2]
[313883888,1707769875771,-500.0,0.00033424,2]
[313883889,1707769875781,-819.76,0.00033424,2]
[313883890,1707769875792,-500.0,0.00033424,2]
[313883891,1707769875802,-500.0,0.00033424,2]
[313883892,1707769875811,-500.0,0.00033424,2]
[313883893,1707769875821,-500.0,0.00033424,2]
[313883894,1707769875831,-1375.77,0.00033424,2]
[313883895,1707769875840,-500.0,0.00033424,2]
[313883896,1707769875850,-4244.4,0.00033424,2]
[313883897,1707769875860,-500.0,0.00033424,2]
[313883898,1707769875870,-500.0,0.00033424,2]
[313883899,1707769875879,-500.0,0.00033424,2]
[313883900,1707769875888,-500.0,0.00033424,2]
[313883901,1707769875898,-500.0,0.00033424,2]
[313883902,1707769875909,-500.0,0.00033424,2]
[313883903,1707769875918,-500.0,0.00033424,2]
[313883904,1707769875928,-500.0,0.00033424,2]
[313883905,1707769875938,-846.93,0.00033424,2]
[313883906,1707769875948,-500.0,0.00033424,2]
[313883907,1707769875958,-500.0,0.00033424,2]
[313883908,1707769875967,-3071.04,0.00033424,2]
[313883909,1707769875977,-500.0,0.00033424,2]
[313883910,1707769875986,-616.73,0.00033424,2]
[313883911,1707769875996,-500.0,0.00033424,2]
[313883912,1707769876005,-500.0,0.00033424,2]
[313883913,1707769876014,-728.9,0.00033424,2]
[313883914,1707769876024,-154.82150377,0.00033424,2]
[313883915,1707769876034,-500.0,0.00033424,2]
[313883916,1707769876043,-500.0,0.00033424,2]
[313883917,1707769876052,-500.0,0.00033424,2]
[313883918,1707769876061,-560.54,0.00033424,2]
[313883919,1707769876071,-500.0,0.00033424,2]
[313883920,1707769876081,-1820.56,0.00033424,2]
[313883921,1707769876090,-743.91,0.00033424,2]
[313883922,1707769876099,-500.0,0.00033424,2]
[313883923,1707769876109,-500.0,0.00033424,2]
[313883924,1707769876118,-552.71,0.00033424,2]
[313883925,1707769876128,-500.0,0.00033424,2]
[313883926,1707769876137,-500.0,0.00033424,2]
[313883927,1707769876146,-1028.39,0.00033424,2]
[313883928,1707769876158,-735.16,0.00033424,2]
[313883929,1707769876167,-600.01654395,0.00033424,2]
[313883930,1707769876177,-246.55112516,0.00033424,2]
[313883931,1707769876186,-1049.27,0.00033424,2]
[313883932,1707769876195,-4338.57,0.00033424,2]
[313883933,1707769876205,-500.0,0.00033424,2]
[313883934,1707769876215,-500.0,0.00033424,2]
[313883935,1707769876226,-2013.56,0.00033424,2]
[313883936,1707769876235,-500.0,0.00033424,2]
[313883937,1707769876244,-152.73673771,0.00033424,2]
[313883938,1707769876254,-500.0,0.00033424,2]
[313883939,1707769876264,-209.95489191,0.00033424,2]
[313883940,1707769876275,-1012.67,0.00033424,2]
[313883941,1707769876285,-500.0,0.00033424,2]
[313883942,1707769876295,-1445.06,0.00033424,2]
[313883943,1707769876306,-500.0,0.00033424,2]
[313883944,1707769876316,-500.0,0.00033424,2]
[313883945,1707769876326,-322.39712261,0.00033424,2]
[313883946,1707769876335,-1677.14,0.00033424,2]
[313883947,1707769876344,-500.0,0.00033424,2]
[313883948,1707769876354,-500.0,0.00033424,2]
[313883949,1707769876364,-500.0,0.00033424,2]
[313883950,1707769876374,-951.75,0.00033424,2]
[313883951,1707769876383,-500.0,0.00033424,2]
[313883952,1707769876393,-500.0,0.00033424,2]
[313883953,1707769876403,-1575.25,0.00033424,2]
[313883954,1707769876412,-500.0,0.00033424,2]
[313883955,1707769876424,-1311.14,0.00033424,2]
[313883956,1707769876435,-1386.13,0.00033424,2]
[313883957,1707769876445,-205.60200443,0.00033424,2]
[313883958,1707769876456,-209.70333742,0.00033424,2]
[313883959,1707769876470,-500.0,0.00033424,2]
[313883960,1707769876482,-893.85,0.00033424,2]
[313883961,1707769876492,-500.0,0.00033424,2]
[313883962,1707769876502,-1280.91,0.00033424,2]
[313883963,1707769876511,-500.0,0.00033424,2]
[313883964,1707769876522,-500.0,0.00033424,2]
[313883965,1707769876531,-500.0,0.00033424,2]
[313883966,1707769876540,-7777.87,0.00033424,2]
[313883967,1707769876551,-500.0,0.00033424,2]
[313883968,1707769876560,-501.05,0.00033424,2]
[313883969,1707769876575,-502.28,0.00033424,2]
[313883970,1707769876587,-500.0,0.00033424,2]
[313883971,1707769876597,-814.8,0.00033424,2]
[313883972,1707769876607,-961.32,0.00033424,2]
[313883973,1707769876618,-500.0,0.00033424,2]
[313883974,1707769876627,-500.0,0.00033424,2]
[313883975,1707769876638,-500.0,0.00033424,2]
[313883976,1707769876659,-500.0,0.00033424,2]
[313883977,1707769876669,-500.0,0.00033424,2]
[313883978,1707769876679,-500.0,0.00033424,2]
[313883979,1707769876689,-500.0,0.00033424,2]
[313883980,1707769876699,-551.08,0.00033424,2]
[313883981,1707769876709,-500.0,0.00033424,2]
[313883982,1707769876718,-500.0,0.00033424,2]
[313883983,1707769876728,-500.0,0.00033424,2]
[313883984,1707769876737,-812.86,0.00033424,2]
[313883985,1707769876747,-500.0,0.00033424,2]
[313883986,1707769876758,-500.0,0.00033424,2]
[313883987,1707769876769,-500.0,0.00033424,2]
[313883988,1707769876778,-512.59,0.00033424,2]
[313883989,1707769876789,-1261.01,0.00033424,2]
[313883990,1707769876798,-500.0,0.00033424,2]
[313883991,1707769876807,-500.0,0.00033424,2]
[313883992,1707769876818,-500.0,0.00033424,2]
[313883993,1707769876827,-5713.47,0.00033424,2]
[313883994,1707769876837,-176.75351854,0.00033424,2]
[313883995,1707769876846,-500.0,0.00033424,2]
[313883996,1707769876861,-500.0,0.00033424,2]
[313883997,1707769876870,-500.0,0.00033424,2]
[313883998,1707769876880,-500.0,0.00033424,2]
[313883999,1707769876889,-500.0,0.00033424,2]
[313884000,1707769877056,-5782.92,0.00033424,2]
[313884001,1707769877066,-500.0,0.00033424,2]
[313884002,1707769877075,-3592.16,0.00033424,2]
[313884003,1707769877084,-500.0,0.00033424,2]
[313884004,1707769877093,-500.0,0.00033424,2]
[313884005,1707769877102,-1417.96,0.00033424,2]
[313884006,1707769877111,-500.0,0.00033424,2]
[313884007,1707769877121,-1507.74,0.00033424,2]
[313884008,1707769877130,-500.0,0.00033424,2]
[313884009,1707769877139,-536.40114462,0.00033424,2]
[313884010,1707769877148,-500.0,0.00033424,2]
[313884011,1707769877158,-500.0,0.00033424,2]
[313884012,1707769877169,-500.0,0.00033424,2]
[313884013,1707769877179,-2719.11,0.00033424,2]
[313884014,1707769877190,-1563.36,0.00033424,2]
[313884015,1707769877201,-735.15,0.00033424,2]
[313884016,1707769877210,-500.0,0.00033424,2]
[313884017,1707769877219,-500.0,0.00033424,2]
[313884018,1707769877228,-500.0,0.00033424,2]
[313884019,1707769877237,-500.0,0.00033424,2]
[313884020,1707769877246,-500.0,0.00033424,2]
[313884021,1707769877256,-1284.95,0.00033424,2]
[313884022,1707769877265,-953.13,0.00033424,2]
[313884023,1707769877275,-500.0,0.00033424,2]
[313884024,1707769877285,-500.0,0.00033424,2]
[313884025,1707769877294,-500.0,0.00033424,2]
[313884026,1707769877305,-500.0,0.00033424,2]
[313884027,1707769877316,-500.0,0.00033424,2]
[313884028,1707769877326,-705.93,0.00033424,2]
[313884029,1707769877335,-503.01,0.00033424,2]
[313884030,1707769877345,-500.0,0.00033424,2]
[313884031,1707769877354,-500.0,0.00033424,2]
[313884032,1707769877364,-500.0,0.00033424,2]
[313884033,1707769877373,-2474.64,0.00033424,2]
[313884034,1707769877382,-500.0,0.00033424,2]
[313884035,1707769877392,-500.0,0.00033424,2]
[313884036,1707769877401,-2229.26,0.00033424,2]
[313884037,1707769877410,-163.72063698,0.00033424,2]
[313884038,1707769877420,-500.0,0.00033424,2]
[313884039,1707769877430,-500.0,0.00033424,2]
[313884040,1707769877439,-500.0,0.00033424,2]
[313884041,1707769877449,-500.0,0.00033424,2]
[313884042,1707769877458,-500.0,0.00033424,2]
[313884043,1707769877468,-1798.72,0.00033424,2]
[313884044,1707769877478,-500.0,0.00033424,2]
[313884045,1707769877488,-1299.67,0.00033424,2]
[313884046,1707769877498,-571.64710068,0.00033424,2]
[313884047,1707769877508,-1347.04,0.00033424,2]
[313884048,1707769877522,-500.0,0.00033424,2]
[313884049,1707769877531,-500.0,0.00033424,2]
[313884050,1707769877541,-1180.11,0.00033424,2]
[313884051,1707769877553,-2115.54,0.00033424,2]
[313884052,1707769877565,-513.48,0.00033424,2]
[313884053,1707769877575,-500.0,0.00033424,2]
[313884054,1707769877587,-500.0,0.00033424,2]
[313884055,1707769877597,-500.0,0.00033424,2]
[313884056,1707769877607,-500.0,0.00033424,2]
[313884057,1707769877616,-3264.57,0.00033424,2]
[313884058,1707769877625,-3140.53,0.00033424,2]
[313884059,1707769877635,-511.99,0.00033424,2]
[313884060,1707769877645,-500.0,0.00033424,2]
[313884061,1707769877656,-500.0,0.00033424,2]
[313884062,1707769877667,-500.0,0.00033424,2]
[313884063,1707769877678,-4051.49,0.00033424,2]
[313884064,1707769877687,-500.0,0.00033424,2]
[313884065,1707769877697,-1799.2,0.00033424,2]
[313884066,1707769877706,-500.0,0.00033424,2]
[313884067,1707769877716,-500.0,0.00033424,2]
[313884068,1707769877726,-500.0,0.00033424,2]
[313884069,1707769877735,-500.0,0.00033424,2]
[313884070,1707769877745,-646.65280048,0.00033424,2]
[313884071,1707769877754,-1680.38,0.00033424,2]
[313884072,1707769877764,-500.0,0.00033424,2]
[313884073,1707769877773,-500.0,0.00033424,2]
[313884074,1707769877783,-500.0,0.00033424,2]
[313884075,1707769877792,-500.0,0.00033424,2]
[313884076,1707769877802,-978.39,0.00033424,2]
[313884077,1707769877811,-500.0,0.00033424,2]
[313884078,1707769877820,-522.7,0.00033424,2]
[313884079,1707769877830,-500.0,0.00033424,2]
[313884080,1707769877839,-500.0,0.00033424,2]
[313884081,1707769877848,-500.0,0.00033424,2]
[313884082,1707769877858,-4240.45,0.00033424,2]
[313884083,1707769877867,-500.0,0.00033424,2]
[313884084,1707769877877,-500.0,0.00033424,2]
[313884085,1707769877886,-500.0,0.00033424,2]
[313884086,1707769877895,-500.0,0.00033424,2]
[313884087,1707769877905,-573.56,0.00033424,2]
[313884088,1707769877914,-500.0,0.00033424,2]
[313884089,1707769877923,-500.0,0.00033424,2]
[313884090,1707769877933,-2397.55,0.00033424,2]
[313884091,1707769877943,-500.0,0.00033424,2]
[313884092,1707769877953,-3239.43,0.00033424,2]
[313884093,1707769877962,-500.0,0.00033424,2]
[313884094,1707769877973,-500.0,0.0003343,3]
[313884095,1707769877982,-500.0,0.00033438,3]
[313884096,1707769877992,-500.0,0.00033447,3]
[313884097,1707769878002,-3256.3275428,0.00033454,2]
[313884098,1707769878011,-500.0,0.00033456,3]
[313884099,1707769878020,-500.0,0.00033465,3]
[313884100,1707769878030,-267.0,0.00033468,2]
[313884101,1707769878039,-500.0,0.00033474,3]
[313884102,1707769878048,-500.0,0.00033482,3]
[313884103,1707769878057,-500.0,0.00033491,3]
[313884104,1707769878067,-500.0,0.000335,3]
[313884105,1707769878077,-929.21,0.000335,2]
[313884106,1707769878087,-929.21,0.000335,2]
[313884107,1707769878096,-929.21,0.000335,2]
[313884108,1707769878106,-929.21,0.000335,2]
[313884109,1707769878115,-929.21,0.000335,2]
[313884110,1707769878125,-929.21,0.000335,2]
[313884111,1707769878135,-929.21,0.000335,2]
[313884112,1707769878144,-929.21,0.000335,2]
[313884113,1707769878154,-929.21,0.000335,2]
[313884114,1707769878164,-929.21,0.000335,2]
[313884115,1707769878174,-929.21,0.000335,2]
[313884116,1707769878184,-929.21,0.000335,2]
[313884117,1707769878193,-929.21,0.000335,2]
[313884118,1707769878203,-929.21,0.000335,2]
[313884119,1707769878213,-929.21,0.000335,2]
[313884120,1707769878222,-929.21,0.000335,2]
[313884121,1707769878232,-929.21,0.000335,2]
[313884122,1707769878242,-929.21,0.000335,2]
[313884123,1707769878251,-929.21,0.000335,2]
[313884124,1707769878260,-929.21,0.000335,2]
[313884125,1707769878269,-151.0,0.00033523,7]
[313884126,1707769878278,-151.0,0.00033523,7]
[313884127,1707769878287,-475.01,0.00033693,2]
[313884128,1707769878296,-500.0,0.00033698,2]
[313884129,1707769878305,-500.0,0.00033698,2]
[313884130,1707769878314,-500.0,0.00033698,2]
[313884131,1707769878323,-500.0,0.00033698,2]
[313884132,1707769878332,-500.0,0.00033698,2]
[313884133,1707769878341,-387.44321928,0.00033698,2]
[313884134,1707769878351,-500.0,0.00033698,2]
[313884135,1707769878360,-526.32,0.00033698,2]
[313884136,1707769878369,-500.0,0.00033698,2]
[313884137,1707769878378,-1072.31594451,0.00033698,9]
[313884138,1707769878387,-500.0,0.00033698,2]
[313884139,1707769878397,-500.0,0.00033698,2]
[313884140,1707769878406,-603.22284465,0.00033698,2]
[313884141,1707769878415,-500.0,0.00033698,2]
[313884142,1707769878424,-500.0,0.00033698,2]
[313884143,1707769878433,-500.0,0.00033698,2]
[313884144,1707769878444,-155.92758043,0.00033698,2]
[313884145,1707769878453,-256.22698921,0.00033698,2]
[313884146,1707769878462,-500.0,0.00033698,2]
[313884147,1707769878472,-500.0,0.00033698,2]
[313884148,1707769878481,-500.0,0.00033698,2]
[313884149,1707769878490,-500.0,0.00033698,2]
[313884150,1707769878500,-500.0,0.00033698,2]
[313884151,1707769878509,-500.0,0.00033698,2]
[313884152,1707769878518,-500.0,0.00033698,2]
[313884153,1707769878528,-500.0,0.00033698,2]
[313884154,1707769878537,-432.50398458,0.00033698,2]
[313884155,1707769878547,-564.49,0.00033698,2]
[313884156,1707769878557,-615.72,0.00033698,2]
[313884157,1707769878568,-500.0,0.00033698,2]
[313884158,1707769878577,-500.0,0.00033698,2]
[313884159,1707769878587,-500.0,0.00033698,2]
[313884160,1707769878598,-530.67485077,0.00033698,2]
[313884161,1707769878608,-500.0,0.00033698,2]
[313884162,1707769878618,-500.0,0.00033698,2]
[313884163,1707769878627,-500.0,0.00033698,2]
[313884164,1707769878636,-500.0,0.00033698,2]
[313884165,1707769878646,-500.0,0.00033698,2]
[313884166,1707769878656,-500.0,0.00033698,20]
[313884167,1707769878666,-500.0,0.00033698,2]
[313884168,1707769878676,-500.0,0.00033698,2]
[313884169,1707769878685,-396.87312473,0.00033698,2]
[313884170,1707769878695,-510.34,0.00033698,2]
[313884171,1707769878706,-500.0,0.00033698,2]
[313884172,1707769878716,-500.0,0.00033698,2]
[313884173,1707769878726,-637.70356539,0.00033698,2]
[313884174,1707769878737,-539.38,0.00033698,2]
[313884175,1707769878747,-268.08,0.00033698,2]
[313884176,1707769878757,-500.0,0.00033698,2]
[313884177,1707769878767,-500.0,0.00033698,2]
[313884178,1707769878777,-500.0,0.00033698,2]
[313884179,1707769878786,-500.0,0.00033698,2]
[313884180,1707769878796,-500.0,0.00033698,2]
[313884181,1707769878807,-500.0,0.00033698,2]
[313884182,1707769878817,-500.0,0.00033698,2]
[313884183,1707769878827,-500.0,0.00033698,2]
[313884184,1707769878837,-500.0,0.00033698,2]
[313884185,1707769878847,-570.28834089,0.00033698,2]
[313884186,1707769878856,-500.0,0.00033698,2]
[313884187,1707769878865,-590.16,0.00033698,2]
[313884188,1707769878874,-500.0,0.00033698,2]
[313884189,1707769878883,-500.0,0.00033698,2]
[313884190,1707769878892,-500.0,0.00033698,2]
[313884191,1707769878902,-500.0,0.00033698,2]
[313884192,1707769878912,-500.0,0.00033698,2]
[313884193,1707769878922,-500.0,0.00033698,2]
[313884194,1707769878931,-500.0,0.00033698,2]
[313884195,1707769878941,-500.0,0.00033698,2]
[313884196,1707769878950,-500.0,0.00033698,2]
[313884197,1707769878960,-500.0,0.00033698,2]
[313884198,1707769878969,-500.0,0.00033698,2]
[313884199,1707769878978,-500.0,0.00033698,2]
[313884200,1707769878988,-500.0,0.00033698,2]
[313884201,1707769878998,-500.0,0.00033698,2]
[313884202,1707769879133,-500.0,0.00033698,2]
[313884203,1707769879143,-500.0,0.00033698,2]
[313884204,1707769879152,-500.0,0.00033698,2]
[313884205,1707769879162,-500.0,0.00033698,2]
[313884206,1707769879171,-500.0,0.00033698,2]
[313884207,1707769879180,-500.0,0.00033698,2]
[313884208,1707769879189,-500.0,0.00033698,2]
[313884209,1707769879198,-500.0,0.00033698,2]
[313884210,1707769879207,-500.0,0.00033698,2]
[313884211,1707769879217,-500.0,0.00033698,2]
[313884212,1707769879226,-500.0,0.00033698,2]
[313884213,1707769879235,-500.0,0.00033698,2]
[313884214,1707769879244,-500.0,0.00033698,2]
[313884215,1707769879253,-500.0,0.00033698,2]
[313884216,1707769879262,-500.0,0.00033698,2]
[313884217,1707769879271,-500.0,0.00033698,2]
[313884218,1707769879280,-500.0,0.00033698,2]
[313884219,1707769879289,-500.0,0.00033698,2]
[313884220,1707769879298,-500.0,0.00033698,2]
[313884221,1707769879307,-500.0,0.00033698,2]
[313884222,1707769879316,-500.0,0.00033698,7]
[313884223,1707769879325,-500.0,0.00033698,2]
[313884224,1707769879335,-500.0,0.00033698,2]
[313884225,1707769879344,-500.0,0.00033698,2]
[313884226,1707769879353,-500.0,0.00033698,2]
[313884227,1707769879363,-500.0,0.00033698,2]
[313884228,1707769879372,-500.0,0.00033698,2]
[313884229,1707769879381,-500.0,0.00033698,2]
[313884230,1707769879390,-158.52588597,0.00033698,2]
[313884231,1707769879399,-500.0,0.00033698,2]
[313884232,1707769879409,-500.0,0.00033698,2]
[313884233,1707769879418,-500.0,0.00033698,2]
[313884234,1707769879427,-966.32,0.00033698,2]
[313884235,1707769879436,-500.0,0.00033698,2]
[313884236,1707769879445,-500.0,0.00033698,2]
[313884237,1707769879455,-411.56603775,0.00033698,2]
[313884238,1707769879464,-500.0,0.00033698,2]
[313884239,1707769879473,-500.0,0.00033698,2]
[313884240,1707769879482,-500.0,0.00033698,2]
[313884241,1707769879492,-500.0,0.00033698,2]
[313884242,1707769879503,-500.0,0.00033698,2]
[313884243,1707769879513,-500.0,0.00033698,2]
[313884244,1707769879522,-500.0,0.00033698,2]
[313884245,1707769879531,-500.0,0.00033698,2]
[313884246,1707769879542,-500.0,0.00033698,2]
[313884247,1707769879552,-807.54,0.00033698,2]
[313884248,1707769879561,-500.0,0.00033698,2]
[313884249,1707769879573,-500.0,0.00033698,2]
[313884250,1707769879583,-500.0,0.00033698,2]
[313884251,1707769879593,-500.0,0.00033698,2]
[313884252,1707769879602,-500.0,0.00033698,2]
[313884253,1707769879611,-500.0,0.00033698,2]
[313884254,1707769879620,-509.91,0.00033698,2]
[313884255,1707769879629,-500.0,0.00033698,2]
[313884256,1707769879638,-500.0,0.00033698,2]
[313884257,1707769879649,-500.0,0.00033698,2]
[313884258,1707769879659,-500.0,0.00033698,2]
[313884259,1707769879668,-500.0,0.00033698,2]
[313884260,1707769879678,-500.0,0.00033698,2]
[313884261,1707769879687,-500.0,0.00033698,2]
[313884262,1707769879697,-500.0,0.00033698,2]
[313884263,1707769879706,-500.0,0.00033698,2]
[313884264,1707769879716,-500.0,0.00033698,2]
[313884265,1707769879726,-500.22,0.00033698,2]
[313884266,1707769879736,-500.0,0.00033698,2]
[313884267,1707769879746,-500.0,0.00033698,2]
[313884268,1707769879755,-316.53,0.00033698,2]
[313884269,1707769879765,-250.0,0.00033698,2]
[313884270,1707769879775,-500.0,0.00033698,2]
[313884271,1707769879784,-500.0,0.00033698,2]
[313884272,1707769879793,-500.0,0.00033698,2]
[313884273,1707769879802,-500.0,0.00033698,2]
[313884274,1707769879812,-500.0,0.00033698,2]
[313884275,1707769879821,-500.0,0.00033698,2]
[313884276,1707769879830,-500.0,0.00033698,2]
[313884277,1707769879839,-580.77,0.00033698,2]
[313884278,1707769879848,-500.0,0.00033698,2]
[313884279,1707769879856,-601.56822779,0.00033698,2]
[313884280,1707769879865,-500.0,0.00033698,2]
[313884281,1707769879874,-500.0,0.00033698,2]
[313884282,1707769879884,-952.06,0.00033698,2]
[313884283,1707769879893,-327.88328821,0.00033698,2]
[313884284,1707769879903,-500.0,0.00033698,2]
[313884285,1707769879913,-500.0,0.00033698,2]
[313884286,1707769879922,-500.0,0.00033698,2]
[313884287,1707769879931,-500.0,0.00033698,2]
[313884288,1707769879940,-500.0,0.00033698,2]
[313884289,1707769879950,-500.0,0.00033698,2]
[313884290,1707769879959,-500.0,0.00033698,2]
[313884291,1707769879968,-500.0,0.00033698,2]
[313884292,1707769879977,-538.47,0.00033698,2]
[313884293,1707769879986,-500.0,0.00033698,2]
[313884294,1707769879996,-500.0,0.00033698,2]
[313884295,1707769880013,-500.0,0.00033698,2]
[313884296,1707769880033,-500.0,0.00033698,2]
[313884297,1707769880050,-511.21114539,0.00033698,2]
[313884298,1707769880072,-1235.07,0.00033698,2]
[313884299,1707769880088,-500.0,0.00033698,2]
[313884300,1707769880106,-500.0,0.00033698,2]
[313884301,1707769880125,-500.0,0.00033698,2]
[313884302,1707769880141,-500.0,0.00033698,2]
[313884303,1707769880159,-150.0,0.00033698,2]
[313884304,1707769880177,-1500.0,0.00033698,5]
[313884305,1707769880196,-500.0,0.00033698,2]
[313884306,1707769880216,-169.26301375,0.00033698,2]
[313884307,1707769880228,-594.75939758,0.00033698,2]
[313884308,1707769880245,-500.0,0.00033698,2]
[313884309,1707769880260,-500.0,0.00033698,2]
[313884310,1707769880275,-500.0,0.00033698,2]
[313884311,1707769880290,-500.0,0.00033698,2]
[313884312,1707769880304,-150.00000001,0.00033698,2]
[313884313,1707769880319,-500.0,0.00033698,2]
[313884314,1707769880334,-500.0,0.00033698,2]
[313884315,1707769880349,-242.2054382,0.00033698,2]
[313884316,1707769880364,-500.0,0.00033698,2]
[313884317,1707769880378,-500.0,0.00033698,2]
[313884318,1707769880392,-500.0,0.00033698,2]
[313884319,1707769880407,-500.0,0.00033698,2]
[313884320,1707769880423,-500.0,0.00033698,2]
[313884321,1707769880437,-500.0,0.00033698,2]
[313884322,1707769880451,-1080.75,0.00033698,2]
[313884323,1707769880467,-500.0,0.00033698,2]
[313884324,1707769880482,-155.0050409,0.00033698,2]
[313884325,1707769880496,-500.0,0.00033698,2]
[313884326,1707769880511,-500.0,0.00033698,2]
[313884327,1707769880526,-500.0,0.00033698,2]
[313884328,1707769880540,-728.15,0.00033698,2]
[313884329,1707769880555,-500.0,0.00033698,2]